bitfinex-derivatives/quotes_ETHF0:USTF0_20241230
["timestamp","ask_amount","ask_price","bid_price","bid_amount"]
[1735519802111,0.4611,3379.7,3379.5,2.69430865]
[1735519802710,0.29643,3380.0,3379.5,2.39783865]
[1735519802908,0.29643,3380.0,3379.8,2.69427865]
[1735519803415,0.29643,3380.0,3379.8,2.69428865]
[1735519804004,0.29644,3379.9,3379.8,2.39783865]
[1735519804713,3.6689,3380.1,3380.0,0.29643]
[1735519804915,3.96532,3380.1,3380.0,0.29643]
[1735519805308,3.2078,3380.1,3380.0,0.29643]
[1735519807612,3.50422,3380.1,3379.9,0.9241]
[1735519807813,3.2078,3380.1,3380.0,0.29643]
[1735519809119,3.2078,3380.1,3379.9,0.9241]
[1735519809316,0.29643,3380.0,3379.9,0.4571]
[1735519809509,0.29644,3379.9,3379.7,2.69428865]
[1735519809714,0.74354,3379.9,3379.7,2.69428865]
[1735519811525,0.29647,3379.6,3379.4,2.69431865]
[1735519812027,3.2078,3380.1,3379.4,2.39783865]
[1735519812333,3.50423,3380.1,3379.9,0.29644]
[1735519812524,3.50422,3380.1,3380.0,0.4787]
[1735519813120,0.29647,3379.6,3379.4,2.39783865]
[1735519813316,1.3947,3380.0,3379.4,2.39783865]
[1735519813622,3.2078,3379.7,3379.3,0.4787]
[1735519813921,0.29648,3379.4,3379.3,0.4787]
[1735519814426,0.29649,3379.3,3379.1,10.41903574]
[1735519814630,3.2078,3379.7,3379.1,10.12252574]
[1735519814922,0.2965,3379.3,3379.1,10.41903574]
[1735519815116,0.2965,3379.3,3379.1,3.50431]
[1735519815717,0.2965,3379.2,3379.1,3.50431]
[1735519815914,0.2965,3379.2,3379.1,3.2078]
[1735519816319,0.29649,3379.3,3379.1,3.5043]
[1735519816519,0.29649,3379.3,3379.2,0.2965]
[1735519816824,0.2965,3379.2,3379.1,3.2078]
[1735519817424,3.94897,3379.7,3379.0,0.4787]
[1735519817624,3.94897,3379.7,3378.9,2.39783865]
[1735519817625,3.2078,3379.2,3378.9,2.39783865]
[1735519817821,1.4086,3379.1,3378.9,2.39783865]
[1735519818022,0.29652,3379.0,3378.9,2.39783865]
[1735519819129,0.29652,3379.0,3378.9,2.69436865]
[1735519819929,3.50431,3379.2,3379.1,0.29651]
[1735519820428,3.2078,3379.2,3379.1,0.29651]
[1735519821023,4.58607485,3379.6,3379.5,0.29647]
[1735519821217,3.15577485,3379.6,3379.5,2.69430865]
[1735519821628,3.15577485,3379.6,3379.5,43.49430865]
[1735519821820,3.2078,3380.0,3379.9,0.29644]
[1735519822025,3.2078,3380.0,3379.9,2.69427865]
[1735519822328,3.2078,3380.0,3379.5,40.8]
[1735519822531,0.4737,3379.9,3379.6,2.39783865]
[1735519822924,0.4737,3379.9,3379.5,40.8]
[1735519823225,0.29648,3379.4,3379.3,2.39783865]
[1735519823429,3.50427,3379.6,3379.5,6.89615496]
[1735519824830,3.2078,3379.6,3379.0,0.29652]
[1735519825028,0.29651,3379.1,3379.0,0.29652]
[1735519825426,0.73341,3379.1,3379.0,0.29652]
[1735519826329,0.29652,3379.0,3378.9,0.29652]
[1735519827027,0.29654,3378.7,3378.6,6.89615496]
[1735519827325,0.29655,3378.6,3378.5,10.10395496]
[1735519827525,0.29655,3378.6,3378.5,10.40051496]
[1735519828123,0.29655,3378.6,3378.5,10.10395496]
[1735519828524,0.29655,3378.6,3378.5,6.89615496]
[1735519828726,0.29658,3378.3,3378.2,6.89615496]
[1735519828934,3.50438,3378.3,3378.2,6.89615496]
[1735519829837,0.2966,3378.1,3378.0,1.1382]
[1735519830333,0.8749,3378.2,3378.1,0.2966]
[1735519830930,1.17149,3378.2,3378.1,0.2966]
[1735519831233,0.8749,3378.2,3378.1,0.2966]
[1735519832235,0.29656,3378.6,3378.4,0.29657]
[1735519832431,0.29656,3378.6,3378.5,0.4167]
[1735519835235,3.2078,3378.7,3378.1,0.29659]
[1735519835428,3.2078,3378.7,3378.1,0.72489]
[1735519835429,0.29658,3378.3,3378.1,0.72489]
[1735519836336,0.29658,3378.3,3378.2,0.29659]
[1735519837435,3.2078,3378.7,3378.2,0.29659]
[1735519837628,0.29658,3378.4,3378.1,0.4283]
[1735519837829,3.2078,3378.7,3377.7,2.82963865]
[1735519838135,0.29661,3377.9,3377.8,0.72472]
[1735519838735,0.29661,3378.0,3377.9,0.29661]
[1735519839335,0.4613,3378.3,3378.2,0.29659]
[1735519839628,0.29658,3378.4,3378.2,0.29659]
[1735519839833,0.435,3378.6,3378.3,0.72578]
[1735519840033,0.29657,3378.4,3378.3,0.72578]
[1735519840433,0.29657,3378.4,3378.3,0.4292]
[1735519843138,3.2078,3378.7,3378.6,0.29655]
[1735519844146,3.2078,3379.2,3379.1,0.29651]
[1735519844338,3.2078,3379.2,3379.1,2.69434865]
[1735519844741,3.2078,3379.2,3379.1,40.8]
[1735519845038,0.29653,3378.9,3378.8,3.54346865]
[1735519845640,0.29652,3379.0,3378.8,3.24693865]
[1735519845844,0.29652,3379.0,3378.9,0.29653]
[1735519846139,0.29653,3378.9,3378.8,3.24693865]
[1735519846334,0.29652,3379.0,3378.8,3.54346865]
[1735519847835,0.74841,3379.1,3378.9,0.29652]
[1735519848735,0.74841,3379.1,3379.0,0.29652]
[1735519849537,3.9238,3379.2,3378.8,3.24693865]
[1735519849747,3.2078,3379.2,3379.1,2.69434865]
[1735519850543,0.29648,3379.5,3379.2,0.2965]
[1735519850740,0.29648,3379.5,3379.3,0.74128]
[1735519850937,0.29648,3379.5,3379.4,0.4244]
[1735519851339,0.29648,3379.5,3379.3,0.74129]
[1735519851340,0.29648,3379.4,3379.3,0.74129]
[1735519851542,0.29648,3379.4,3379.3,0.4448]
[1735519851746,0.29648,3379.4,3379.3,0.74129]
[1735519852337,0.29648,3379.4,3379.3,0.4448]
[1735519852537,0.2965,3379.2,3379.1,0.29651]
[1735519852747,0.2965,3379.3,3379.2,0.2965]
[1735519853444,0.4516,3379.6,3379.1,0.4262]
[1735519853643,0.2965,3379.2,3379.1,0.7227]
[1735519854346,0.2965,3379.3,3379.2,0.2965]
[1735519854647,0.2965,3379.2,3379.1,0.7227]
[1735519854849,0.4166,3379.2,3379.1,0.7227]
[1735519855748,0.29649,3379.3,3379.2,0.29649]
[1735519855949,0.29649,3379.4,3379.3,0.29649]
[1735519856240,1.16467,3379.6,3379.5,0.29647]
[1735519856445,0.8682,3379.6,3379.1,2.82403865]
[1735519856647,0.29649,3379.4,3379.3,0.29649]
[1735519857149,0.29648,3379.5,3379.4,0.29648]
[1735519857444,0.29649,3379.4,3379.3,0.29649]
[1735519858336,0.8682,3379.6,3379.1,0.4262]
[1735519858541,0.2965,3379.2,3379.1,0.7227]
[1735519860048,0.2965,3379.2,3378.8,2.39783865]
[1735519860348,0.8773,3379.1,3379.0,0.29652]
[1735519861247,0.29653,3378.9,3378.8,0.72683]
[1735519861444,0.8773,3379.1,3378.8,0.4303]
[1735519861644,0.8773,3379.1,3379.0,0.29652]
[1735519862055,3.2078,3379.4,3378.8,2.82813865]
[1735519862359,3.2078,3379.4,3379.3,0.29649]
[1735519862851,3.2078,3379.4,3379.3,1.17759]
[1735519863049,4.36928971,3379.7,3379.3,0.8811]
[1735519863350,3.2078,3379.8,3379.5,2.39783865]
[1735519863547,3.2078,3379.8,3379.7,0.29646]
[1735519863747,3.2078,3379.8,3379.5,2.39783865]
[1735519864148,0.4215,3379.7,3379.4,0.4587]
[1735519864387,3.2078,3379.8,3379.5,2.39783865]
[1735519864550,3.2078,3379.8,3379.7,0.29646]
[1735519864750,3.2078,3379.8,3379.5,2.39783865]
[1735519864943,3.50425,3379.8,3379.7,0.29646]
[1735519865147,3.2078,3379.8,3379.5,2.39783865]
[1735519865465,3.50425,3379.8,3379.6,0.29646]
[1735519866957,3.2078,3379.8,3379.6,0.29646]
[1735519867158,0.29646,3379.7,3379.6,0.29646]
[1735519867552,3.50425,3379.8,3379.6,0.29646]
[1735519867753,0.29646,3379.7,3379.6,0.29646]
[1735519868571,0.29646,3379.7,3379.5,2.39783865]
[1735519869062,0.29646,3379.7,3379.6,0.29647]
[1735519869357,3.2078,3379.8,3379.5,2.39783865]
[1735519869653,0.29649,3379.4,3379.3,0.29649]
[1735519870048,1.16888,3379.5,3379.3,0.29649]
[1735519870252,1.16888,3379.5,3379.2,2.39783865]
[1735519870253,1.16888,3379.5,3379.4,0.29648]
[1735519871755,0.8724,3379.5,3379.4,0.29648]
[1735519872159,0.4257,3379.5,3379.4,0.29648]
[1735519873053,0.4399,3380.0,3379.2,2.39783865]
[1735519873258,1.63094,3380.0,3379.8,0.29644]
[1735519873453,0.29644,3379.9,3379.8,0.29644]
[1735519874161,1.3345,3380.0,3379.7,2.39783865]
[1735519874456,0.29645,3379.8,3379.7,2.39783865]
[1735519875351,1.3345,3380.0,3379.7,2.39783865]
[1735519875548,1.63093,3380.0,3379.9,0.29644]
[1735519876449,1.19103,3380.0,3379.9,0.29644]
[1735519877355,3.2078,3380.2,3380.1,0.29642]
[1735519877559,3.2078,3380.2,3380.1,2.69425865]
[1735519878558,3.6552,3380.6,3380.1,2.69425865]
[1735519878756,3.6552,3380.6,3380.5,0.29639]
[1735519878972,3.49348971,3380.9,3380.8,0.29636]
[1735519879165,3.49348971,3380.9,3380.8,2.69419865]
[1735519880058,3.2078,3381.1,3380.9,0.29635]
[1735519880464,3.2078,3381.1,3380.9,0.4586]
[1735519880663,3.2078,3381.1,3381.0,41.09634]
[1735519881464,3.6477,3381.5,3381.4,0.29631]
[1735519881659,3.2078,3381.5,3381.4,2.69414865]
[1735519883967,0.8785,3382.1,3381.4,2.39783865]
[1735519884165,6.70128971,3382.5,3381.9,2.39783865]
[1735519884467,3.49348971,3382.5,3382.4,2.39783865]
[1735519885072,3.93231,3382.6,3382.4,2.39783865]
[1735519885073,3.6361,3382.6,3382.4,2.39783865]
[1735519885368,3.9323,3382.6,3382.4,2.39783865]
[1735519885871,3.93231,3382.6,3382.4,2.39783865]
[1735519886261,0.29621,3382.5,3382.4,2.39783865]
[1735519886459,0.74221,3382.5,3382.4,2.39783865]
[1735519887069,3.2078,3382.6,3382.5,0.29621]
[1735519887872,3.504,3382.6,3382.4,2.69405865]
[1735519888061,3.2078,3382.6,3382.4,2.39783865]
[1735519888265,3.504,3382.6,3382.4,2.39783865]
[1735519888464,0.29621,3382.5,3382.4,2.39783865]
[1735519889669,3.2078,3382.6,3382.4,2.39783865]
[1735519889871,3.50401,3382.6,3382.4,2.39783865]
[1735519890269,0.29621,3382.5,3382.4,2.39783865]
[1735519890563,0.29624,3382.2,3382.1,2.39783865]
[1735519890766,3.50404,3382.2,3382.1,2.39783865]
[1735519890962,3.2078,3382.2,3382.1,2.69408865]
[1735519891170,3.2078,3382.6,3382.1,2.39783865]
[1735519891380,0.29621,3382.5,3382.4,2.39783865]
[1735519891869,0.29623,3382.3,3382.2,0.4349]
[1735519892077,0.29618,3382.9,3382.5,0.29621]
[1735519892369,0.29618,3382.9,3382.8,2.39783865]
[1735519892370,0.8641,3382.9,3382.8,2.39783865]
[1735519892569,1.16028,3382.9,3382.8,2.39783865]
[1735519892772,0.8641,3382.9,3382.8,2.39783865]
[1735519892972,3.2078,3383.0,3382.8,2.39783865]
[1735519893277,3.2078,3383.0,3382.9,0.29618]
[1735519893470,3.2078,3383.0,3382.9,0.73108]
[1735519894368,2.31114977,3383.5,3382.9,0.73108]
[1735519894369,5.51894977,3383.5,3382.9,0.8773]
[1735519894671,5.51894977,3383.5,3383.4,0.29613]
[1735519894871,5.51894977,3383.5,3383.3,2.39783865]
[1735519894872,3.50392,3383.5,3383.3,2.69397865]
[1735519895075,0.29613,3383.4,3383.3,2.39783865]
[1735519895373,3.50393,3383.5,3383.3,2.69397865]
[1735519895567,3.2078,3383.5,3383.3,2.39783865]
[1735519895773,3.50393,3383.5,3383.3,2.69397865]
[1735519896172,3.50393,3383.5,3383.3,2.39783865]
[1735519896173,3.2078,3383.5,3383.3,2.39783865]
[1735519896371,3.2078,3383.5,3383.4,0.29613]
[1735519896670,3.2078,3383.5,3383.3,2.69397865]
[1735519897169,3.2078,3383.5,3383.4,0.29613]
[1735519897469,3.2078,3383.5,3383.3,2.39783865]
[1735519897667,3.50393,3383.5,3383.3,2.39783865]
[1735519897868,3.50393,3383.5,3383.3,2.69397865]
[1735519898075,3.50393,3383.5,3383.3,2.39783865]
[1735519898269,3.2078,3383.5,3383.3,2.39783865]
[1735519898467,3.2078,3383.5,3383.4,0.29613]
[1735519898669,3.2078,3383.5,3383.3,2.69397865]
[1735519898872,3.2078,3383.5,3383.4,0.29613]
[1735519899469,3.2078,3383.5,3383.3,2.69397865]
[1735519900177,3.2078,3383.5,3383.4,0.29613]
[1735519900571,3.2078,3384.1,3383.4,3.2078]
[1735519900779,3.50388,3384.1,3384.0,2.39783865]
[1735519901172,3.2078,3384.1,3384.0,2.39783865]
[1735519901368,0.4366,3384.5,3384.0,2.39783865]
[1735519901573,0.29604,3384.4,3384.3,2.39783865]
[1735519902374,0.4366,3384.5,3384.0,2.39783865]
[1735519902680,0.29609,3383.9,3383.8,3.2078]
[1735519903977,0.29609,3383.9,3383.7,2.39783865]
[1735519904176,0.29609,3383.9,3383.7,2.69394865]
[1735519904374,0.2961,3383.8,3383.7,2.39783865]
[1735519904570,0.2961,3383.8,3383.7,2.69394865]
[1735519904777,0.2961,3383.8,3383.7,2.39783865]
[1735519905875,4.0799,3384.2,3383.7,2.39783865]
[1735519906076,0.2961,3383.8,3383.7,2.39783865]
[1735519907181,3.5039,3383.8,3383.7,2.39783865]
[1735519908980,0.2961,3383.8,3383.7,2.39783865]
[1735519909281,4.0799,3384.2,3383.7,2.39783865]
[1735519909581,0.29609,3383.9,3383.8,0.4499]
[1735519911386,0.00338684,3383.9,3383.8,0.4499]
[1735519911578,0.00338684,3383.9,3383.8,1.6371]
[1735519911977,0.00338684,3383.9,3383.8,4.03493865]
[1735519912180,0.00338684,3383.9,3383.8,49.83493865]
[1735519912377,3.2078,3384.6,3383.8,49.53883865]
[1735519912584,3.2078,3384.6,3384.5,2.69387865]
[1735519913576,3.2078,3385.2,3384.5,2.39783865]
[1735519913791,0.27767347,3385.5,3385.1,2.39783865]
[1735519913792,0.4438,3385.5,3385.1,2.39783865]
[1735519914088,0.4438,3385.5,3385.4,2.39783865]
[1735519914285,0.4438,3385.5,3385.4,2.69379865]
[1735519914489,0.4438,3385.5,3385.4,2.39783865]
[1735519914683,0.29594,3385.6,3385.4,2.39783865]
[1735519914888,0.29594,3385.6,3385.4,2.84563865]
[1735519915382,3.2078,3385.8,3385.4,2.84563865]
[1735519915576,0.29594,3385.6,3385.4,3.14158865]
[1735519915989,0.29594,3385.6,3385.4,2.84563865]
[1735519916588,3.2078,3385.8,3385.4,2.39783865]
[1735519916589,0.29595,3385.5,3385.4,2.39783865]
[1735519916790,0.75145,3385.5,3385.4,2.39783865]
[1735519920686,0.75145,3385.5,3385.1,2.39783865]
[1735519920687,0.29597,3385.2,3385.1,2.39783865]
[1735519921080,3.2078,3385.4,3385.1,2.39783865]
[1735519921387,0.2959,3386.1,3385.8,0.29592]
[1735519921587,3.50369,3386.2,3386.1,2.39783865]
[1735519921792,3.50369,3386.2,3386.1,43.19783865]
[1735519921793,3.2078,3386.2,3386.1,43.19783865]
[1735519921981,0.73951,3387.2,3386.1,43.19783865]
[1735519921982,6.96579208,3388.3,3386.1,51.70163865]
[1735519922286,5.51894977,3387.4,3387.0,2.39783865]
[1735519922582,0.29582,3387.0,3386.9,2.39783865]
[1735519922983,0.4423,3387.3,3386.9,2.39783865]
[1735519923193,0.2958,3387.2,3386.9,2.69365865]
[1735519923393,0.2958,3387.2,3387.1,2.39783865]
[1735519923893,3.2078,3387.4,3387.1,2.39783865]
[1735519924092,0.2958,3387.2,3387.1,2.39783865]
[1735519924399,2.31114977,3388.1,3387.1,7.39783865]
[1735519924589,2.31114977,3388.1,3388.0,5.90136865]
[1735519924797,2.31114977,3388.1,3388.0,47.91436865]
[1735519924990,4.64590339,3388.4,3388.0,52.61863865]
[1735519925190,3.2078,3388.8,3388.0,52.61863865]
[1735519925191,5.50652251,3388.8,3388.0,52.61863865]
[1735519925389,0.29567,3388.7,3388.2,0.29571]
[1735519925594,0.29567,3388.7,3388.6,2.39783865]
[1735519925892,5.80219251,3388.8,3388.6,2.39783865]
[1735519926387,5.50652251,3388.8,3388.6,2.69350865]
[1735519926590,5.50652251,3388.8,3388.6,2.39783865]
[1735519926993,5.50652251,3388.8,3388.6,2.69351865]
[1735519927181,5.50652251,3388.8,3388.6,2.39783865]
[1735519927182,2.29872251,3388.8,3388.6,2.39783865]
[1735519927382,0.29564,3389.1,3388.7,0.29567]
[1735519927587,0.29564,3389.1,3389.0,2.39783865]
[1735519928787,1.88553245,3390.3,3388.9,3.2078]
[1735519928788,3.2078,3389.7,3388.9,3.2078]
[1735519928985,3.49348971,3390.0,3389.4,4.7956773]
[1735519929293,3.49348971,3390.0,3389.9,2.69339865]
[1735519929799,3.49348971,3390.3,3389.9,48.19783865]
[1735519929984,4.64590339,3390.5,3390.2,5.60563865]
[1735519930184,0.79957495,3390.7,3390.6,0.2955]
[1735519930394,0.79957495,3390.7,3390.6,3.5033]
[1735519930590,6.96579208,3391.1,3390.6,3.2078]
[1735519930796,6.96579208,3391.1,3391.0,5.60563865]
[1735519931192,0.9236085,3391.2,3390.2,3.2078]
[1735519931386,0.9236085,3391.2,3390.4,2.39783865]
[1735519931387,0.2955,3390.7,3390.4,2.39783865]
[1735519931897,0.29548,3390.9,3390.4,2.39783865]
[1735519932088,0.4323,3391.1,3390.2,5.60563865]
[1735519932295,0.29551,3390.6,3390.2,3.2078]
[1735519932597,0.4323,3391.1,3390.5,0.2955]
[1735519932891,0.9236085,3391.2,3390.8,3.14133355]
[1735519933100,0.9236085,3391.2,3390.8,2.84585355]
[1735519933986,0.9236085,3391.2,3390.9,0.29547]
[1735519934500,0.9236085,3391.2,3390.8,3.14133355]
[1735519935189,0.9236085,3391.2,3391.1,3.2078]
[1735519935794,0.9236085,3391.2,3391.1,8.50326]
[1735519935990,0.9236085,3391.2,3391.1,49.30326]
[1735519937295,0.4323,3392.6,3391.1,49.30326]
[1735519937296,3.2078,3391.9,3391.1,3.2078]
[1735519937498,0.2954,3391.8,3391.2,0.29545]
[1735519937896,3.50319,3391.9,3391.3,0.29544]
[1735519938089,3.2078,3391.9,3391.1,3.2078]
[1735519938296,3.2078,3392.3,3391.1,3.2078]
[1735519938497,4.01649355,3392.6,3391.1,3.2078]
[1735519938498,0.29543,3391.5,3391.1,3.2078]
[1735519938696,0.29542,3391.6,3391.1,3.2078]
[1735519938993,3.2078,3392.4,3391.5,3.2078]
[1735519939218,0.29541,3391.7,3391.5,3.2078]
[1735519939389,8.2078,3392.4,3391.2,2.84585355]
[1735519939594,0.29543,3391.5,3391.2,2.84585355]
[1735519939795,3.2078,3391.9,3391.2,2.84585355]
[1735519940196,3.50319,3391.9,3391.2,2.84585355]
[1735519940391,0.29539,3391.9,3391.4,0.29543]
[1735519940702,0.29539,3391.9,3391.5,3.2078]
[1735519941093,3.2078,3392.3,3391.5,3.2078]
[1735519941495,0.29539,3391.9,3391.5,3.2078]
[1735519941696,3.2078,3392.3,3391.5,3.2078]
[1735519941897,0.2954,3391.8,3391.5,3.2078]
[1735519942099,3.2078,3392.3,3391.5,3.2078]
[1735519942597,0.29542,3391.6,3391.5,3.2078]
[1735519942801,3.2078,3392.3,3391.5,3.2078]
[1735519943397,0.29542,3391.6,3391.5,3.2078]
[1735519943698,0.29539,3392.0,3391.6,0.29542]
[1735519943900,3.2078,3392.3,3391.5,3.2078]
[1735519944100,0.29542,3391.6,3391.5,3.2078]
[1735519944896,0.29544,3391.4,3391.2,2.84585355]
[1735519945098,0.29543,3391.5,3391.2,2.84585355]
[1735519945300,3.665,3391.9,3391.2,2.84585355]
[1735519945596,0.29546,3391.1,3391.0,40.8]
[1735519945804,0.29547,3391.0,3390.8,2.84585355]
[1735519945997,3.2078,3390.9,3389.7,3.2078]
[1735519946198,3.2078,3390.3,3389.7,6.05365355]
[1735519946394,3.2078,3390.3,3390.1,2.84585355]
[1735519946706,0.4549,3390.9,3390.8,0.29549]
[1735519947092,0.4549,3390.9,3390.7,6.34914355]
[1735519947294,0.4549,3390.9,3390.8,40.8]
[1735519947701,0.4549,3390.9,3390.7,6.05365355]
[1735519948201,0.4549,3390.9,3390.7,46.85365355]
[1735519948503,3.2078,3391.3,3390.7,46.85365355]
[1735519948806,3.2078,3391.3,3390.8,0.29549]
[1735519949004,0.29542,3391.6,3391.2,6.05365355]
[1735519949198,0.8929,3391.7,3391.2,3.2078]
[1735519949401,0.29544,3391.3,3391.2,3.2078]
[1735519949710,0.8929,3391.7,3390.8,2.84585355]
[1735519950014,0.29547,3391.0,3390.8,2.84585355]
[1735519950604,0.29544,3391.3,3390.7,44.0078]
[1735519950807,3.2078,3391.4,3390.7,44.0078]
[1735519951004,0.29547,3391.0,3390.7,44.0078]
[1735519951199,3.2078,3391.4,3390.7,44.0078]
[1735519951407,0.8929,3391.7,3391.2,2.84585355]
[1735519951607,0.8929,3391.7,3391.3,0.29544]
[1735519951810,0.8929,3391.7,3391.2,2.84585355]
[1735519952212,0.8929,3391.7,3391.4,0.29543]
[1735519952918,1.18831,3391.7,3391.3,0.29544]
[1735519953111,0.29542,3391.6,3391.3,0.29544]
[1735519953315,1.18831,3391.7,3391.3,0.29544]
[1735519953907,0.29542,3391.6,3391.3,0.29544]
[1735519954104,0.8929,3391.7,3391.3,0.29544]
[1735519954105,1.18832,3391.7,3391.3,0.29544]
[1735519954310,0.29542,3391.6,3391.2,2.84585355]
[1735519954513,0.8929,3391.7,3391.2,2.84585355]
[1735519954712,0.29543,3391.5,3391.2,2.84585355]
[1735519955117,0.8929,3391.7,3391.2,2.84585355]
[1735519955322,0.29543,3391.5,3391.2,2.84585355]
[1735519955512,0.8929,3391.7,3391.2,2.84585355]
[1735519955915,0.29542,3391.6,3391.2,2.84585355]
[1735519956118,3.2078,3391.8,3391.2,2.84585355]
[1735519956420,3.5032,3391.8,3391.4,0.29543]
[1735519956817,3.2078,3391.8,3391.5,40.8]
[1735519957017,3.5032,3391.8,3391.5,40.8]
[1735519957221,3.2078,3391.8,3391.5,40.8]
[1735519957415,0.29542,3391.6,3391.2,3.14130355]
[1735519957616,0.29541,3391.7,3391.3,0.29544]
[1735519958017,0.29541,3391.7,3391.4,40.8]
[1735519958217,3.5032,3391.8,3391.4,41.09543]
[1735519958619,3.2078,3391.8,3391.4,40.8]
[1735519959025,0.29542,3391.6,3391.4,40.8]
[1735519959421,0.4304,3392.1,3391.4,40.8]
[1735519959722,0.72578,3392.1,3391.7,3.5032]
[1735519959924,0.4304,3392.1,3391.7,3.2078]
[1735519960327,0.29539,3391.9,3391.7,3.2078]
[1735519960521,0.4502,3392.3,3391.7,3.2078]
[1735519960726,0.74556,3392.3,3392.0,0.29538]
[1735519960928,0.74556,3392.3,3391.9,0.29538]
[1735519961221,0.4502,3392.3,3391.9,2.84585355]
[1735519961426,0.4502,3392.3,3392.1,0.29537]
[1735519961624,0.4502,3392.3,3391.9,2.84585355]
[1735519961823,0.4502,3392.3,3392.1,0.29537]
[1735519962022,0.4502,3392.3,3391.9,2.84585355]
[1735519962423,0.29537,3392.2,3391.9,3.14123355]
[1735519962629,0.4502,3392.3,3391.7,3.2078]
[1735519962824,0.2954,3391.8,3391.7,3.2078]
[1735519965823,0.4394,3392.1,3391.7,3.2078]
[1735519966226,0.2954,3391.9,3391.7,3.2078]
[1735519966729,0.2954,3391.8,3391.7,3.2078]
[1735519966926,0.4394,3392.1,3391.7,3.2078]
[1735519967131,0.29539,3392.0,3391.7,3.5032]
[1735519967332,0.29539,3391.9,3391.7,3.5032]
[1735519967629,0.29539,3391.9,3391.7,3.2078]
[1735519967825,0.4394,3392.1,3391.7,3.2078]
[1735519968029,0.2954,3391.8,3391.7,3.2078]
[1735519968522,0.4394,3392.1,3391.7,3.2078]
[1735519968720,0.29539,3391.9,3391.7,3.5032]
[1735519969125,0.29539,3391.9,3391.7,3.2078]
[1735519969320,0.29539,3391.9,3391.7,3.5032]
[1735519969524,0.4394,3392.1,3391.7,3.2078]
[1735519969924,0.29539,3391.9,3391.7,3.2078]
[1735519970132,0.4394,3392.1,3391.7,3.2078]
[1735519970332,0.2954,3391.8,3391.7,3.2078]
[1735519970726,0.29539,3392.0,3391.7,3.5032]
[1735519970927,0.29539,3391.9,3391.7,3.5032]
[1735519971133,0.4394,3392.1,3391.7,3.2078]
[1735519971327,0.2954,3391.8,3391.7,3.2078]
[1735519971527,0.4394,3392.1,3391.7,3.2078]
[1735519971727,0.29539,3392.0,3391.8,0.2954]
[1735519972235,3.2078,3392.8,3391.9,2.84585355]
[1735519972429,0.29535,3392.4,3392.3,2.84585355]
[1735519972830,0.29535,3392.4,3392.3,43.64585355]
[1735519973138,0.4324,3392.6,3391.9,2.84585355]
[1735519973438,0.29538,3392.0,3391.8,3.14125355]
[1735519973731,0.29538,3392.1,3391.9,40.8]
[1735519973941,0.29538,3392.1,3391.9,45.37736681]
[1735519974229,0.4324,3392.6,3391.9,45.37736681]
[1735519974230,0.29538,3392.0,3391.9,4.57736681]
[1735519974430,0.75308,3392.0,3391.9,4.57736681]
[1735519975533,0.75308,3392.0,3391.7,7.78516681]
[1735519975534,0.2954,3391.8,3391.7,7.78516681]
[1735519976735,0.2954,3391.8,3391.7,3.2078]
[1735519978337,0.4387,3391.9,3391.4,6.95593927]
[1735519978536,3.50322,3391.5,3391.4,6.95593927]
[1735519978729,3.50322,3391.5,3391.4,4.57736681]
[1735519978936,8.2078,3391.5,3391.2,6.89615496]
[1735519979130,0.29544,3391.3,3391.2,6.89615496]
[1735519979530,3.2078,3391.5,3390.9,6.89615496]
[1735519979737,0.29547,3391.0,3390.9,6.89615496]
[1735519980235,0.29547,3391.0,3390.9,9.74129234]
[1735519981234,0.29547,3391.0,3390.9,2.84513738]
[1735519982537,0.29547,3391.0,3390.9,43.64513738]
[1735519982743,0.29547,3391.0,3390.9,40.8]
[1735519983038,0.9096,3391.4,3390.8,3.2078]
[1735519983238,5.9096,3391.4,3390.5,2.84513738]
[1735519983441,3.2078,3391.0,3390.4,6.89615496]
[1735519983637,0.29551,3390.6,3390.4,10.10395496]
[1735519983840,0.2955,3390.7,3390.5,2.84513738]
[1735519984138,0.29547,3391.0,3390.7,0.29549]
[1735519984337,0.29547,3391.0,3390.4,3.2078]
[1735519984338,0.29910846,3391.0,3390.9,2.84513738]
[1735519985338,0.29910846,3391.0,3390.8,0.4272]
[1735519985339,0.00363846,3391.0,3390.5,2.84513738]
[1735519985735,0.00363846,3391.0,3390.9,6.34841738]
[1735519986130,0.29544,3391.4,3390.9,6.05293738]
[1735519986339,0.29543,3391.5,3391.3,6.05293738]
[1735519986538,0.29543,3391.4,3391.3,2.84513738]
[1735519986736,0.29546,3391.1,3391.0,0.4432]
[1735519987135,0.29546,3391.1,3391.0,41.2432]
[1735519987541,0.29546,3391.1,3391.0,40.8]
[1735519987735,0.29547,3391.0,3390.9,6.05293738]
[1735519987940,0.29547,3391.0,3390.9,3.2078]
[1735519988133,3.2078,3391.6,3390.9,6.05293738]
[1735519988333,0.4582,3391.8,3390.9,2.84513738]
[1735519988539,3.2078,3391.6,3390.5,6.89615496]
[1735519988741,0.29552,3390.4,3390.3,10.54715496]
[1735519988939,0.29552,3390.4,3390.3,51.34715496]
[1735519989139,0.8842,3390.9,3390.3,51.34715496]
[1735519989539,0.29552,3390.4,3390.3,6.89615496]
[1735519990139,0.29554,3390.2,3390.1,40.8]
[1735519990648,0.29556,3389.9,3389.8,3.2078]
[1735519992640,3.2078,3390.7,3389.8,3.2078]
[1735519992835,3.2078,3390.7,3390.0,0.29555]
[1735519993137,0.2955,3390.7,3390.4,0.29552]
[1735519993341,0.2955,3390.7,3390.5,0.4301]
[1735519993543,3.47414475,3390.8,3390.5,0.4301]
[1735519993741,0.2955,3390.6,3390.5,0.4301]
[1735519994044,0.2955,3390.7,3390.5,0.4301]
[1735519994251,0.2955,3390.6,3390.5,0.4301]
[1735519994542,3.94646,3391.1,3390.2,3.2078]
[1735519994747,0.29554,3390.2,3390.1,3.6464]
[1735519994946,8.2078,3391.1,3390.1,6.49153738]
[1735519995243,0.29554,3390.2,3390.1,3.2078]
[1735519995446,0.29556,3390.0,3389.8,7.36315496]